Cogmind - Beta 13 @@@ ROGUE MODE // 2024.04.07 @ 23:02:47 Player: chexo4 Result: Destroyed by G-47 Trooper with Particle Gun Performance ------------- Evolutions (0) 0 Regions Visited (2) 400 Robots Destroyed (32) 160 Value Destroyed (537) 537 Prototype IDs (1) 20 Alien Tech Used (0) 0 Bonus (-204) -204 TOTAL SCORE: 913 Bonus ------- Friendly Fire -204 Cogmind --------- Core Integrity 0/250 Matter 300/300 Energy 150/150 System Corruption 2% Temperature Cool (15) Movement Core (150) Ox2 Location -10/Mines Parts ------- > --- POWER (1) -------- Light Angular Momentum Engine > --- PROPULSION (2) --- (None) > --- UTILITY (2) ------ Medium Storage Unit Weight Redist. System > --- WEAPON (2) ------- Beam Cannon Makeshift Spear > --- INVENTORY (10) --- Light Ion Engine Flight Unit Large Storage Unit Medium Battery (150) Sensor Array Improved Terrain Scanner Decoy Drone Bay (0/16) Particle Gun Mining Laser Peak State ------------ > --- POWER ------------ Light Ion Engine > --- PROPULSION ------- Wheel Wheel > --- UTILITY ---------- Decoy Drone Bay > --- WEAPON ----------- Beam Cannon Makeshift Spear > --- INVENTORY -------- Flight Unit Medium Battery Particle Gun [Rating: 22] Favorites ----------- Power Light Ion Engine Engine Light Ion Engine Power Core Light Nuclear Core Propulsion Wheel Wheel Wheel Flight Unit Flight Unit Utility Medium Storage Unit Device Improved Terrain Scanner Storage Medium Storage Unit Weapon Assault Rifle Energy Gun Medium Laser Energy Cannon Beam Cannon Ballistic Gun Assault Rifle Special Weapon Mining Laser Piercing Weapon Makeshift Spear Build | -11 -10 -10 ------- Run | Yrd Mat Min Slots Evolved . | . . . Power . | . . . Propulsion . | . . . Utility . | . . . Weapon . | . . . Parts Attached 49 | 7 17 25 Power 9 | 1 2 6 Engine 8 | 1 2 5 Core 1 | . . 1 Reactor . | . . . Propulsion 12 | 2 10 . Treads . | . . . Leg . | . . . Wheel 10 | 2 8 . Hover . | . . . Flight 2 | . 2 . Utility 13 | 2 2 9 Device 9 | 1 1 7 Storage 4 | 1 1 2 Processor . | . . . Hackware . | . . . Protection . | . . . Artifact . | . . . Weapon 15 | 2 3 10 Energy Gun 3 | 1 . 2 Energy Cannon 3 | . 1 2 Ballistic Gun 4 | 1 2 1 Ballistic Cannon . | . . . Launcher . | . . . Special Weapon 3 | . . 3 Impact Weapon . | . . . Slashing Weapon . | . . . Piercing Weapon 2 | . . 2 Special Melee Weapon . | . . . Unidentified Prototypes 1 | . . 1 Parts Lost 9 | . 6 3 Power 2 | . 1 1 Propulsion 5 | . 3 2 Utility . | . . . Weapon 2 | . 2 . Highest Loss Streak 4 | . 4 2 To Critical Strikes . | . . . Average Slot Usage (%) 96 | . 96 97 Engine 12 | . 13 12 Wheel 26 | . 24 27 Device 13 | . 14 13 Storage 13 | . 14 12 Energy Gun 5 | . 10 . Energy Cannon 5 | . 1 9 Ballistic Gun 11 | . 15 5 Special Weapon 1 | . . 3 Piercing Weapon 4 | . . 9 Naked Turns . | . . . Heaviest Build 28 | 13 18 28 Greatest Support 26 | 20 20 26 Greatest Overweight (x) 5 | . 5 2 Average Overweight (x) . | . . . Largest Inventory Capacity 15 | 8 10 15 Average Capacity 9 | 7 8 9 Most Carried 10 | 6 8 10 Average Carried 6 | 2 5 8 Final Capacity 10 | 8 10 10 Final Carried 10 | 5 8 10 Class Distribution -------------------- 50% | Mutant 49% | Scavenger-Mutant Dominant Class ---------------- Mutant | -10/Materials Scavenger-Mutant | -10/Mines Resources | -11 -10 -10 ----------- Run | Yrd Mat Min Matter Collected 931 | 196 332 403 Remotely . | . . . Salvage Created 945 | 176 427 342 Parts 68 | 13 30 25 Haulers Intercepted 1 | . 1 . Recyclers Shooed 1 | . 1 . Parts Field Recycled . | . . . Retrieved Matter . | . . . Parts Self-Destructed . | . . . Prevented . | . . . Kills | -11 -10 -10 ------- Run | Yrd Mat Min Combat Hostiles Destroyed 22 | . 14 8 Melee 2 | . . 2 Guns 17 | . 14 3 Cannons 3 | . . 3 Classes Destroyed 7 | 2 5 . Worker 2 | . 2 . Tunneler 4 | 4 . . Hauler 1 | . 1 . Recycler 1 | 1 . . Mechanic 1 | . 1 . Swarmer 12 | . 9 3 Grunt 10 | . 5 5 Thug 1 | . . 1 Best Kill Streak 7 | 4 7 3 Combat Bots Only 7 | . 7 3 Max Kills in Single Turn 2 | 1 2 1 Gunslinging 1 | . 1 . Exploded . | . . . Melee 1 | . . 1 Uniques/NPCs Destroyed . | . . . Combat | -11 -10 -10 -------- Run | Yrd Mat Min Hostile Shots Fired 119 | . 75 44 Missed 26 | . 13 13 Damage Taken 945 | 2 559 384 Core 255 | . 139 116 Absorbed by Shields . | . . . Core Remaining (%) 100 | 100 . . Volleys Fired 99 | 10 51 38 Largest 2 | 2 2 2 Hottest 125 | 70 70 125 Shots Fired 170 | 18 97 55 Gun 131 | 18 97 16 Cannon 24 | . . 24 Launcher . | . . . Special 15 | . . 15 Kinetic 78 | 10 59 9 Thermal 92 | 8 38 46 Explosive . | . . . Electromagnetic . | . . . Robot Hit Streak 8 | 4 6 8 Robot Miss Streak 5 | 2 5 2 Penetration Max . | . . . Secondary Targets 6 | . 6 . Max Gunslinging Chain 1 | . 1 . Shots Hit Robots 92 | 10 52 30 Core Hits 43 | 6 24 13 Critical Kills . | . . . Critical Parts Destroyed . | . . . Critical Strikes 8 | . 6 2 Burn 6 | . 6 . Impale 2 | . . 2 Melee Attacks 10 | . . 10 Impact . | . . . Slashing . | . . . Piercing 10 | . . 10 Sneak Attacks 2 | . . 2 Combat Hostiles . | . . . Follow-up Attacks . | . . . Damage Inflicted 1468 | 140 698 630 Guns 920 | 136 692 92 Cannons 260 | . . 260 Explosions . | . . . Melee 278 | . . 278 Ramming 10 | 4 6 . Kinetic 575 | 85 454 36 Thermal 605 | 51 238 316 Explosive . | . . . Electromagnetic . | . . . Impact . | . . . Slashing . | . . . Piercing 278 | . . 278 Highest Corruption 2 | . 2 2 Average Corruption 1 | . 1 2 Corruption Purged . | . . . Corruption Blocked . | . . . Effects 14 | . 1 13 Message Errors 3 | . . 3 Matter Fused 3 | . 1 2 Heat Flow Errors 2 | . . 2 Energy Discharges 3 | . . 3 Misfires 3 | . . 3 Overload Shots . | . . . Overflow Damage 41 | . . 41 Projectiles . | . . . Explosions . | . . . Melee 41 | . . 41 Knockbacks . | . . . Impact . | . . . Kinetic . | . . . Secondary . | . . . Self-Inflicted Damage 4 | 2 2 . Shots . | . . . Rammed 4 | 1 3 . Targets Rammed 4 | 1 3 . Kicked . | . . . Crushed . | . . . Highest Temperature 502 | 27 153 502 Average Temperature 81 | 13 41 116 Received Heat Transfer 318 | . 126 192 Effects 4 | . . 4 Shutdowns 1 | . . 1 Matter Decay 2 | . . 2 Short Circuit 1 | . . 1 Siege Activations . | . . . Robots Corrupted . | . . . Combat Hostiles . | . . . Parts Fried . | . . . Impact Corruptions . | . . . Robots Melted . | . . . Combat Hostiles . | . . . Parts Melted 5 | . 3 2 Heat Transferred 1998 | 148 1147 703 Parts Sabotaged . | . . . Parts Stolen . | . . . Parts Stripped . | . . . Power Chain Reactions . | . . . Alert | -11 -10 -10 ------- Run | Yrd Mat Min Peak Influence 273 | 25 273 229 Initial 70 | . 16 70 Average 92 | 11 101 91 Maximum Alert Level 1 | . 1 1 Low Security (%) 93 | 100 95 90 Level 1 6 | . 4 9 Level 2 . | . . . Level 3 . | . . . Level 4 . | . . . Level 5 . | . . . High Security . | . . . Max Security . | . . . Squads Dispatched 2 | . 2 . Investigation 1 | . 1 . Extermination . | . . . Reinforcement 1 | . 1 . Assault . | . . . Garrison . | . . . Intercept . | . . . Searches Triggered . | . . . Construction Impeded . | . . . Haulers Reinforced . | . . . Active Scanning Responses . | . . . Cargo Convoy Interrupts . | . . . Stealth | -11 -10 -10 --------- Run | Yrd Mat Min Distress Signals . | . . . Communications Jammed . | . . . Distress Signals . | . . . Times Spotted 32 | . 21 11 Peak Tracking Total 6 | . 6 3 Tactical Retreats 1 | . 1 . Traps | -11 -10 -10 ------- Run | Yrd Mat Min Traps Triggered 3 | . 3 . Indirectly . | . . . Trap Hack Attempts . | . . . Triggered . | . . . Disarmed . | . . . Reprogrammed . | . . . Reused . | . . . Traps Extracted . | . . . Installed . | . . . Triggered . | . . . Machines | -11 -10 -10 ---------- Run | Yrd Mat Min Machines Disabled . | . . . Max in Single Turn . | . . . Machines Repaired . | . . . Machines Dismantled . | . . . Machines Sabotaged . | . . . Overloaded Fab Kills . | . . . Hacking | -11 -10 -10 --------- Run | Yrd Mat Min Machines Accessed 5 | . 3 2 Terminals 4 | . 3 1 Fabricators . | . . . Repair Stations . | . . . Recycling Units . | . . . Scanalyzers . | . . . Garrison Access . | . . . Total Hacks 10 | . 7 3 Successful 5 | . 3 2 Failed 5 | . 4 1 Catastrophic 2 | . 2 . Database Lockouts . | . . . Manual 7 | . 5 2 Terminals 9 | . 7 2 Fabricators . | . . . Repair Stations . | . . . Recycling Units . | . . . Scanalyzers . | . . . Garrison Access . | . . . Terminal Hacks 5 | . 3 2 Open Door 1 | . . 1 Branch Access Points 1 | . 1 . Locate Traps 1 | . 1 . Zone Layout 2 | . 1 1 Fabricator Hacks . | . . . Repair Station Hacks . | . . . Recycling Unit Hacks . | . . . Scanalyzer . | . . . Garrison Access Hacks . | . . . Unauthorized Hacks . | . . . Terminals . | . . . Fabricators . | . . . Repair Stations . | . . . Recycling Units . | . . . Scanalyzers . | . . . Garrison Access . | . . . Data Cores Recovered . | . . . Used . | . . . Hacking Detections 2 | . 2 . Full Trace Events 1 | . 1 . Feedback Events . | . . . Feedback Blocked . | . . . Robot Schematics Acquired . | . . . Robots Built . | . . . Authchips . | . . . Time . | . . . Total Robot Build Rating . | . . . Part Schematics Acquired . | . . . Parts Built . | . . . Authchips . | . . . Time . | . . . Total Part Build Rating . | . . . Parts Repaired . | . . . Time . | . . . Parts Recycled . | . . . Recycled Matter . | . . . Retrieved Matter . | . . . Retrieved Components . | . . . Parts Scanalyzed . | . . . Part Schematics Acquired . | . . . Parts Damaged . | . . . Bothacking | -11 -10 -10 ------------ Run | Yrd Mat Min Used RIF Installer . | . . . Robots Hacked . | . . . Non-combat . | . . . Combat . | . . . Robot Hacks Applied . | . . . Relay Couplers Released . | . . . Fabnet Peak Effective % . | . . . Robots Rewired . | . . . Allies Hacked . | . . . Hacks Repelled . | . . . Allies | -11 -10 -10 -------- Run | Yrd Mat Min Total Allies . | . . . Largest Group . | . . . Highest-Rated Group . | . . . Highest-Rated Ally . | . . . Total Orders . | . . . Ally Attacks . | . . . Total Damage . | . . . Kills . | . . . Allies Corrupted . | . . . Allies Melted . | . . . Intel | -11 -10 -10 ------- Run | Yrd Mat Min Robot Analysis Total . | . . . Derelict Logs Recovered . | . . . Drone Launches 16 | . . 16 Drone Recoveries . | . . . Exploration | -11 -10 -10 ------------- Run | Yrd Mat Min Turns Passed 2076 | 99 1070 907 Spaces Moved 1361 | 70 579 712 Core 44 | 15 26 3 Treads . | . . . Legs . | . . . Wheels 1317 | 55 553 709 Hover . | . . . Flight . | . . . Fastest Speed 50 | 50 80 80 Average Speed 84 | 73 88 81 Slowest Speed 300 | 80 300 150 Overloaded Moves . | . . . Propulsion Burnouts . | . . . Robots Hopped . | . . . Cave-ins Triggered . | . . . Exploration Rate (%) 55 | 4 72 89 Regions Visited 2 Branch Regions 1 Pre-discovered Areas 1 | . . 1 Known Exits Taken 1 | . 1 . Unknown Exits Taken 1 | 1 . . Scrap Searched 1 | . . 1 Spaces Dug 15 | . . 15 Terrain Destroyed 15 | . . 15 Melee . | . . . Projectile 15 | . . 15 AOE . | . . . Terrain Rammed . | . . . Walls Destroyed . | . . . Machines Disabled . | . . . Actions | -11 -10 -10 --------- Run | Yrd Mat Min Total 2079 | 99 1036 944 Wait 505 | . 372 133 Move 1360 | 70 578 712 Hop . | . . . Pick Up 40 | 12 12 16 Fast Attach . | . . . Attach 20 | 7 8 5 Detach . | . . . Swap 29 | . 9 20 Drop 13 | . 3 10 Fire 99 | 10 51 38 Melee 10 | . . 10 Ram 3 | . 3 . Kick . | . . . Crush . | . . . Escape Stasis . | . . . Rewire . | . . . Trap . | . . . Miscellaneous . | . . . Route ------- -11/Scrapyard -10/Materials (discovered 4 exits: [*Mat x3] / *Min) -10/Mines (discovered 2 exits: [*Mat x2]) History --------- Turn | Location | Event 8 | -11/Scrapyard | Discovered new exit (range 16) 100 | -11/Scrapyard | Entered Materials 301 | -10/Materials | Build established: Mutant 663 | -10/Materials | Discovered new exit (range 8) 821 | -10/Materials | Discovered new exit (range 3) 861 | -10/Materials | Core integrity fell below 50% 895 | -10/Materials | Destroyed 7 combat bots 904 | -10/Materials | Lost 4 parts (2n2w) 1119 | -10/Materials | Identified exit to Mines 1143 | -10/Materials | Discovered new exit (range 3) 1170 | -10/Materials | Entered Mines 1226 | -10/Mines | Discovered new exit (range 15) 1245 | -10/Mines | Learned location of Storage (-9) 1285 | -10/Mines | Build established: Scavenger-Mutant 1459 | -10/Mines | A weapon hastily lodged in a ceiling crevice suddenly fell to the ground 1573 | -10/Mines | Core integrity fell below 20% 1597 | -10/Mines | Found the Drone Emporium 1601 | -10/Mines | Found Prototype Device 1603 | -10/Mines | Identified Decoy Drone Bay 1672 | -10/Mines | Lost 16 allies 1785 | -10/Mines | Discovered new exit (range 9) 2077 | -10/Mines | Destroyed by G-47 Trooper with Particle Gun Last Messages --------------- Acquired Mining Laser. Acquired Decoy Drone Bay. RT-D32(g) destroyed. Acquired 20 matter. Dropped Lgt. Ion Engine. Acquired 10 matter. Acquired Lgt. Ion Engine. Acquired 20 matter. System corrupted: Matter fused (-6). EXIT=FOUND K-01 Serf collects debris. System corrupted: Energy discharge (-30). Sneak attack on T-07 Excavator. Destroyed Wheel. 3YPWGYCQ6QLAZEZO9VKCAO System corrupted: Energy discharge (-51). Wheel destroyed. G-34 Mercenary destroyed. Critical hit (Burn: +37). Acquired 36 matter. Map ----- +----------------------------------------------------+ | | | | | | | | | | | | | | | | | | | | | | | | | ?????????????????????????????????????????????????? | | ?????????????????????????????????????????????????? | | ??????????????????????????###????????????????????? | | ???????????????????????? ????????????????????? | | ????????????????????????"" ???????####??????????? | | ????????????????????????"" ??????## #####??????# | | ????????????????????????"" ?????## ####???? | | ???????????????????????? ????## ##??? | | ????????????????????????# #???## ## #??? | | ????????????????????????# #??## #### #??? | | ???????????????????#????# #??# ##??## ##??? | | ??????????????????? ????# #?## #????######???? | | ??????????????????? ???## #?# #?????????????? | | ??????????????????? ??## @g#?# #??????????#??? | | ??????????????????# #?# =%[### ##???????????#?? | | ??????????????????# #?# ##????????????#? | | ??????????????##??# #?# ####??????????? | | ??????????????? #?# #?# """ ##?????????? | | ???????????????? ## #?# """ #???#?????? | | ????????????????? #?###### """ #?????????? | | ?????????????????# #??????## ##??????#### | | ?????????????????# #???????## ########??????## | | ?????????????????# ########## #????????????## | | ?????????????????# ####????????## ## | | ?????????????????# ############ ##??????## ##? | | ?????????????????# ##??????## #??????# ##?? | | ?????????????????# ##???### ##?????# ##?? | | ?????????????????# ##?### ####?## ### | | ????????????????## ### ### | | ????????????????# ## | | ????????????????# ### | | ????????????????# ### ##?# | | ????????????????# ##?#### #####??# | | ????????????????## ## #?#???####??????# | | ?????????????????############# ##??????????????## | | ?????????????????????????????####???????????????# | | ?????????????????????????????????????#?????????# | | ??????????????????????????????????#??????????#? | +----------------------------------------------------+ Best States ------------- Heat Dissipation 25 Energy Generation 18 Energy Capacity 160 Matter Stores 300 Matter Capacity 300 Sight Range 16 Robot Scan Range 14 Terrain Scan Range 16 Terrain Scan Density 10 Additional Mass Support 6 Evasion (%) 50 Item Schematics ----------------- None Robot Schematics ------------------ None Fabricated ------------ Nothing Alien Tech Used ----------------- None Achievements -------------- None Challenges ------------ None Game ------ Seed DrainedSwarmExpander Manual? 0 Play Time 00:22:02 Cumulative 14.5 hours Start 2024.04.07 @ 22:40:03 End 2024.04.07 @ 23:02:47 Sessions 1 Manual Loads 0 Difficulty Rogue Special Mode None Game No. 36 Rogue 36 Adventurer 0 Explorer 0 Win Type - Total 0 Types 0/0/0/0/0/0/0/0/0 Lore% 15 Gallery% 25 Achievement% 20 Wizard Run 0 Options --------- Layout 1 ASCII 0 Keyboard 0 Movement Arrows Keybinds 0 Fullscreen 2 Font 24/Smallcaps Map View 50x35 Zoom Use 0% Tactical HUD 0 Map Filters NONE Filters NONE Steam 1 RUN: 5f30bf62-b867-4bdb-a838-2507baeded75